[Event "Argentine Youth-Junior-ch 2025"]
[Site "Mar del Plata"]
[Date "2025.04.15"]
[Round "1.1"]
[White "Abramor, Franco"]
[Black "Aguirre, Bruno"]
[Result "1-0"]
[Annotator "RC"]
[ECO "B01"]
[WhiteElo "2169"]
[BlackElo "1759"]
[PlyCount "87"]
[EventDate "2025.04.14"]
[EventType "swiss"]
[EventCountry "ARG"]
[SourceTitle "playchess.com"]
[Source "ChessBase"]
[SourceQuality "1"]
[TimeControl "3600+30"]

1. e4 {[%emt 0:00:03]} d5 {[%emt 0:00:07]} 2. exd5 {[%emt 0:00:07]} Nf6 {[%emt 0:00:10]} 3. Nf3 {[%emt 0:00:10]} Bf5 {[%emt 0:00:34]} 4. d4 {[%emt 0:00:22]} Qxd5 {[%emt 0:00:34]} 5. Nc3 {[%emt 0:01:05]} Qa5 {[%emt 0:00:24]} 6. Bc4 {[%emt 0:05:42]} e6 {[%emt 0:03:01]} 7. Bd2 {[%emt 0:02:13]} Bb4 {[%emt 0:00:52]} 8. a3 {[%emt 0:01:47]} Bxc3 {[%emt 0:00:15]} 9. Bxc3 {[%emt 0:00:11]} Qb6 {[%emt 0:00:09]} 10. Qe2 {[%emt 0:07:12]} c6 {[%emt 0:04:25]} 11. Ne5 {[%emt 0:04:29]} Nbd7 {[%emt 0:02:24]} 12. Nxd7 {[%emt 0:00:05]} Nxd7 {[%emt 0:05:39]} 13. g4 {[%emt 0:00:03]} Bg6 {[%emt 0:03:55]} 14. h4 {[%emt 0:00:33]} h5 {[%emt 0:07:15]} 15. Bxe6 {[%emt 0:01:24]} O-O-O {[%emt 0:00:14]} 16. Bxd7+ {[%emt 0:02:55]} Rxd7 {[%emt 0:00:48]} 17. O-O-O {[%emt 0:00:33]} hxg4 {[%emt 0:02:00]} 18. Qxg4 {[%emt 0:00:47]} Bh5 {[%emt 0:02:41]} 19. Qxg7 {[%emt 0:00:17]} Rhd8 {[%emt 0:00:23]} 20. Rd3 {[%emt 0:08:07]} c5 {[%emt 0:03:52]} 21. d5 {[%emt 0:10:14]} Rxd5 {[%emt 0:00:47]} 22. Bf6 {[%emt 0:08:33]} Rxd3 {[%emt 0:06:40]} 23. cxd3 {[%emt 0:00:03]} Re8 {[%emt 0:11:45]} 24. Qg5 {[%emt 0:02:23]} Qc6 {[%emt 0:02:29]} 25. Rg1 {[%emt 0:06:11]} Bg6 {[%emt 0:00:49]} 26. Rd1 {[%emt 0:00:31]} c4 {[%emt 0:02:33]} 27. Qg4+ {[%emt 0:04:44]} Re6 {[%emt 0:00:15]} 28. dxc4 {[%emt 0:00:27]} Qe4 {[%emt 0:03:23]} 29. Rd8+ {[%emt 0:02:24]} Kc7 {[%emt 0:00:04]} 30. Qg3+ {[%emt 0:00:17]} Kb6 {[%emt 0:02:39]} 31. Rd6+ {[%emt 0:01:08]} Rxd6 {[%emt 0:01:07]} 32. Qxd6+ {[%emt 0:00:05]} Qc6 {[%emt 0:00:09]} 33. Bd4+ {[%emt 0:00:42]} Ka6 {[%emt 0:00:11]} 34. Qxc6+ {[%emt 0:00:58]} bxc6 {[%emt 0:00:02]} 35. Kd2 {[%emt 0:00:04]} Kb7 {[%emt 0:00:09]} 36. Ke3 {[%emt 0:00:07]} a5 {[%emt 0:01:15]} 37. Kf4 {[%emt 0:00:09]} Kc7 {[%emt 0:00:12]} 38. Kg5 {[%emt 0:00:13]} Kd6 {[%emt 0:00:37]} 39. h5 {[%emt 0:00:19]} Bd3 {[%emt 0:01:24]} 40. Kf6 {[%emt 0:00:56]} Bxc4 {[%emt 0:00:45]} 41. f4 {[%emt 0:00:45]} c5 {[%emt 0:01:22]} 42. Bc3 {[%emt 0:00:06]} Kd7 {[%emt 0:01:25]} 43. h6 {[%emt 0:00:24]} Bd3 {[%emt 0:00:32]} 44. f5 {[%emt 0:00:08]} 1-0

[Event "Argentine Youth-Junior-ch 2025"]
[Site "Mar del Plata"]
[Date "2025.04.15"]
[Round "1.2"]
[White "Scarsi, Anna Laura"]
[Black "Amarilla, Abril Antonella"]
[Result "1-0"]
[Annotator "RC"]
[ECO "B31"]
[WhiteElo "2144"]
[BlackElo "1681"]
[PlyCount "40"]
[EventDate "2025.04.14"]
[EventType "swiss"]
[EventCountry "ARG"]
[SourceTitle "playchess.com"]
[Source "ChessBase"]
[SourceQuality "1"]
[TimeControl "3600+30"]

1. e4 {[%emt 0:00:03]} c5 {[%emt 0:00:06]} 2. Nf3 {[%emt 0:00:04]} Nc6 {[%emt 0:00:09]} 3. Bb5 {[%emt 0:00:06]} g6 {[%emt 0:00:19]} 4. c3 {[%emt 0:00:05]} Bg7 {[%emt 0:00:20]} 5. O-O {[%emt 0:00:06]} e6 {[%emt 0:00:22]} 6. d4 {[%emt 0:01:16]} cxd4 {[%emt 0:01:11]} 7. cxd4 {[%emt 0:00:10]} a6 {[%emt 0:00:09]} 8. Ba4 {[%emt 0:03:53]} b5 {[%emt 0:04:50]} 9. d5 {[%emt 0:06:33]} Nce7 {[%emt 0:08:58]} 10. Bb3 {[%emt 0:03:24]} e5 {[%emt 0:03:48]} 11. d6 {[%emt 0:02:21]} Nc6 {[%emt 0:00:18]} 12. Qd5 {[%emt 0:01:15]} Qf6 {[%emt 0:03:50]} 13. Bg5 {[%emt 0:01:58]} Qe6 {[%emt 0:00:06]} 14. Qd3 {[%emt 0:01:06]} Qg4 {[%emt 0:03:43]} 15. h3 {[%emt 0:01:38]} Nb4 {[%emt 0:00:12]} 16. Qd2 {[%emt 0:00:28]} Qxe4 {[%emt 0:04:40]} 17. Re1 {[%emt 0:00:41]} Qf5 {[%emt 0:01:55]} 18. Qxb4 {[%emt 0:02:09]} Bb7 {[%emt 0:01:17]} 19. Nbd2 {[%emt 0:03:05]} Nh6 {[%emt 0:04:52]} 20. Bxh6 {[%emt 0:00:56]} Bf8 {[%emt 0:29:25]} 1-0

[Event "Argentine Youth-Junior-ch 2025"]
[Site "Mar del Plata"]
[Date "2025.04.15"]
[Round "1.3"]
[White "Gimenez, Julieta"]
[Black "Izaguirre, Lucia Belen"]
[Result "1-0"]
[Annotator "NA RC"]
[ECO "C50"]
[WhiteElo "1606"]
[BlackElo "1725"]
[PlyCount "64"]
[EventDate "2025.04.14"]
[EventType "swiss"]
[EventCountry "ARG"]
[SourceTitle "playchess.com"]
[Source "ChessBase"]
[SourceQuality "1"]
[TimeControl "3600+30"]

1. e4 {[%emt 0:00:03]} e5 {[%emt 1:01:00]} 2. Nf3 {[%emt 1:01:27]} Nc6 {[%emt 0:00:00]} 3. Bc4 {[%emt 0:00:00]} Bc5 {[%emt 0:00:00]} 4. d3 {[%emt 0:00:00]} Nf6 {[%emt 0:00:00]} 5. Nc3 {[%emt 0:00:00]} a6 {[%emt 0:00:00]} 6. Nd5 {[%emt 0:00:00]} Nxd5 {[%emt 0:00:00]} 7. Bxd5 {[%emt 0:00:00]} d6 {[%emt 0:00:00]} 8. Ng5 {[%emt 0:00:00]} Be6 {[%emt 0:00:00]} 9. Bxe6 {[%emt 0:00:00]} fxe6 {[%emt 0:00:00]} 10. Qg4 {[%emt 0:00:00]} Nd4 {[%emt 0:00:00]} 11. Nxe6 {[%emt 0:04:30]} Nxe6 {[%emt 0:00:00]} 12. Qxe6+ {[%emt 0:00:00]} Qe7 {[%emt 0:00:00]} 13. Qxe7+ {[%emt 0:00:00]} Kxe7 {[%emt 0:00:00]} 14. Bg5+ {[%emt 0:00:00]} Kd7 {[%emt 0:00:00]} 15. Rf1 {[%emt 0:00:00]} Rhf8 {[%emt 0:00:00]} 16. c3 {[%emt 0:00:00]} Bb6 {[%emt 0:00:00]} 17. Rd1 {[%emt 0:00:00]} Rae8 {[%emt 0:00:00]} 18. f3 {[%emt 0:00:00]} c6 {[%emt 0:00:00]} 19. a3 {[%emt 0:00:00]} Re6 {[%emt 0:02:20]} 20. Bh4 {[%emt 0:00:00]} Rg6 {[%emt 0:02:27]} 21. g4 {[%emt 0:05:00]} Rh6 {[%emt 0:05:13]} 22. Bg3 {[%emt 0:00:30]} Rhf6 {[%emt 0:00:00]} 23. Ke2 {[%emt 0:00:00]} g5 {[%emt 0:00:00]} 24. d4 {[%emt 0:00:00]} exd4 {[%emt 0:00:00]} 25. cxd4 {[%emt 0:01:30]} d5 {[%emt 0:02:00]} 26. e5 {[%emt 0:00:30]} R6f7 {[%emt 0:00:30]} 27. b4 {[%emt 0:00:00]} Bd8 {[%emt 0:00:00]} 28. Ke3 {[%emt 0:00:00]} Ke6 {[%emt 0:00:12]} 29. Rd2 {[%emt 0:01:30]} Be7 {[%emt 0:00:32]} 30. Rdf2 {[%emt 0:00:00]} a5 {[%emt 0:00:37]} 31. bxa5 {[%emt 0:01:00]} Bxa3 {[%emt 0:00:09]} 32. Ra2 {[%emt 0:00:00]} Be7 {[%emt 0:01:30]} 1-0

[Event "Argentine Youth-Junior-ch 2025"]
[Site "Mar del Plata"]
[Date "2025.04.15"]
[Round "1.4"]
[White "Villordo, Matias"]
[Black "Rodriguez, Lautaro"]
[Result "1-0"]
[Annotator "NA RC"]
[ECO "B41"]
[WhiteElo "2055"]
[BlackElo "1750"]
[PlyCount "36"]
[EventDate "2025.04.14"]
[EventType "swiss"]
[EventCountry "ARG"]
[SourceTitle "playchess.com"]
[Source "ChessBase"]
[SourceQuality "1"]
[TimeControl "3600+30"]

1. e4 {[%emt 0:00:11]} c5 {[%emt 0:00:08]} 2. Nf3 {[%emt 0:00:16]} e6 {[%emt 0:00:11]} 3. d4 {[%emt 0:00:20]} cxd4 {[%emt 0:00:11]} 4. Nxd4 {[%emt 0:00:11]} a6 {[%emt 0:00:08]} 5. c4 {[%emt 0:00:19]} Qc7 {[%emt 0:00:06]} 6. a3 {[%emt 0:00:58]} Nf6 {[%emt 0:00:23]} 7. Nc3 {[%emt 0:00:36]} d6 {[%emt 0:01:26]} 8. Be3 {[%emt 0:01:02]} Nbd7 {[%emt 0:00:36]} 9. Be2 {[%emt 0:00:53]} g6 {[%emt 0:01:25]} 10. O-O {[%emt 0:03:08]} Bg7 {[%emt 0:00:54]} 11. f4 {[%emt 0:04:30]} e5 {[%emt 0:06:35]} 12. fxe5 {[%emt 0:07:11]} dxe5 {[%emt 0:00:21]} 13. Nc2 {[%emt 0:00:32]} O-O {[%emt 0:11:49]} 14. Nb4 {[%emt 0:02:07]} b6 {[%emt 0:10:59]} 15. Ncd5 {[%emt 0:10:21]} Nxd5 {[%emt 0:00:56]} 16. Nxd5 {[%emt 0:01:04]} Qd8 {[%emt 0:00:56]} 17. Bg4 {[%emt 0:02:09]} Nc5 {[%emt 0:01:34]} 18. Bxc5 {[%emt 0:06:25]} bxc5 {[%emt 0:00:32]} 1-0

[Event "Argentine Youth-Junior-ch 2025"]
[Site "Mar del Plata"]
[Date "2025.04.15"]
[Round "1.5"]
[White "Bazan Romero, Octavio Aaron"]
[Black "Aragon, Ciro"]
[Result "1-0"]
[Annotator "RC"]
[ECO "B22"]
[WhiteElo "2292"]
[BlackElo "1653"]
[PlyCount "73"]
[EventDate "2025.04.14"]
[EventType "swiss"]
[EventCountry "ARG"]
[SourceTitle "playchess.com"]
[Source "ChessBase"]
[SourceQuality "1"]
[TimeControl "3600+30"]

1. e4 {[%emt 0:00:46]} c5 {[%emt 0:00:22]} 2. c3 {[%emt 0:00:15]} Nf6 {[%emt 0:00:58]} 3. e5 {[%emt 0:00:19]} Nd5 {[%emt 0:00:08]} 4. Nf3 {[%emt 0:01:52]} Nc6 {[%emt 0:01:25]} 5. Bc4 {[%emt 0:02:20]} e6 {[%emt 0:02:27]} 6. d4 {[%emt 0:00:37]} d6 {[%emt 0:00:56]} 7. O-O {[%emt 0:05:09]} Nb6 {[%emt 0:06:00]} 8. Bb5 {[%emt 0:01:33]} Qc7 {[%emt 0:03:14]} 9. Bf4 {[%emt 0:03:02]} Be7 {[%emt 0:03:06]} 10. Nbd2 {[%emt 0:04:13]} O-O {[%emt 0:02:31]} 11. exd6 {[%emt 0:00:14]} Bxd6 {[%emt 0:00:09]} 12. Bxd6 {[%emt 0:00:01]} Qxd6 {[%emt 0:00:08]} 13. Ne4 {[%emt 0:00:08]} Qf4 {[%emt 0:04:03]} 14. Nxc5 {[%emt 0:04:02]} Rd8 {[%emt 0:02:30]} 15. Bxc6 {[%emt 0:00:12]} bxc6 {[%emt 0:00:14]} 16. Ne5 {[%emt 0:02:15]} Rd6 {[%emt 0:06:05]} 17. Qc1 {[%emt 0:00:58]} Qh4 {[%emt 0:06:00]} 18. g3 {[%emt 0:03:18]} Qe7 {[%emt 0:01:25]} 19. Ne4 {[%emt 0:00:56]} Rd5 {[%emt 0:01:34]} 20. c4 {[%emt 0:14:27]} Rxd4 {[%emt 0:05:47]} 21. Nxc6 {[%emt 0:00:02]} Qb7 {[%emt 0:00:09]} 22. Nxd4 {[%emt 0:00:08]} Qxe4 {[%emt 0:00:08]} 23. Qc3 {[%emt 0:00:38]} Bb7 {[%emt 0:05:41]} 24. f3 {[%emt 0:00:13]} Qg6 {[%emt 0:00:31]} 25. Rad1 {[%emt 0:02:35]} h5 {[%emt 0:00:44]} 26. b3 {[%emt 0:00:39]} h4 {[%emt 0:02:45]} 27. Ne2 {[%emt 0:00:20]} Rc8 {[%emt 0:01:00]} 28. Rd4 {[%emt 0:01:58]} hxg3 {[%emt 0:01:22]} 29. hxg3 {[%emt 0:00:15]} e5 {[%emt 0:02:14]} 30. Rg4 {[%emt 0:00:41]} Qf5 {[%emt 0:00:31]} 31. Qe3 {[%emt 0:00:24]} g6 {[%emt 0:01:33]} 32. Nc3 {[%emt 0:00:51]} Kg7 {[%emt 0:02:18]} 33. Rg5 {[%emt 0:00:16]} Qd7 {[%emt 0:01:28]} 34. Rd1 {[%emt 0:00:19]} Qh3 {[%emt 0:00:51]} 35. Qxe5+ {[%emt 0:00:15]} f6 {[%emt 0:00:33]} 36. Qe7+ {[%emt 0:00:07]} Kh6 {[%emt 0:00:05]} 37. Qxf6 {[%emt 0:00:26]} 1-0

[Event "Argentine Youth-Junior-ch 2025"]
[Site "Mar del Plata"]
[Date "2025.04.15"]
[Round "1.6"]
[White "Benitez, Agustina"]
[Black "Ferrin, Camila"]
[Result "1-0"]
[Annotator "NA RC"]
[ECO "D03"]
[WhiteElo "1804"]
[BlackElo "1609"]
[PlyCount "67"]
[EventDate "2025.04.14"]
[EventType "swiss"]
[EventCountry "ARG"]
[SourceTitle "playchess.com"]
[Source "ChessBase"]
[SourceQuality "1"]
[TimeControl "3600+30"]

1. d4 {[%emt 0:00:12]} d5 {[%emt 0:00:06]} 2. Nf3 {[%emt 0:00:04]} c6 {[%emt 0:00:05]} 3. Bg5 {[%emt 0:00:04]} Bf5 {[%emt 0:00:07]} 4. e3 {[%emt 0:00:07]} Nf6 {[%emt 0:00:15]} 5. c4 {[%emt 0:00:07]} Nbd7 {[%emt 0:00:35]} 6. Qb3 {[%emt 0:00:11]} b6 {[%emt 0:00:33]} 7. Nc3 {[%emt 0:00:08]} e6 {[%emt 0:00:18]} 8. cxd5 {[%emt 0:00:32]} exd5 {[%emt 0:00:46]} 9. e4 {[%emt 0:01:02]} dxe4 {[%emt 0:02:38]} 10. Ne5 {[%emt 0:00:12]} Qe7 {[%emt 0:02:46]} 11. Nxc6 {[%emt 0:00:39]} Qd6 {[%emt 0:01:22]} 12. Ne5 {[%emt 0:01:36]} Nxe5 {[%emt 0:03:03]} 13. dxe5 {[%emt 0:00:06]} Qxe5 {[%emt 0:01:29]} 14. Bxf6 {[%emt 0:00:13]} Qxf6 {[%emt 0:02:39]} 15. Bb5+ {[%emt 0:00:18]} Bd7 {[%emt 0:00:58]} 16. Bxd7+ {[%emt 0:00:07]} Kxd7 {[%emt 0:00:05]} 17. Qd5+ {[%emt 1:03:22]} Bd6 {[%emt 0:51:15]} 18. Qb7+ {[%emt 0:00:30]} Ke6 {[%emt 0:00:30]} 19. O-O {[%emt 0:00:30]} Rhd8 {[%emt 0:00:30]} 20. Qxe4+ {[%emt 0:00:30]} Kd7 {[%emt 0:00:30]} 21. Rad1 {[%emt 0:00:30]} Rac8 {[%emt 0:00:30]} 22. Rfe1 {[%emt 0:00:30]} Rc5 {[%emt 0:00:30]} 23. Qg4+ {[%emt 0:00:30]} Qf5 {[%emt 0:00:30]} 24. Qa4+ {[%emt 0:00:30]} b5 {[%emt 0:00:30]} 25. Qxa7+ {[%emt 0:00:30]} Rc7 {[%emt 0:00:30]} 26. Rxd6+ {[%emt 0:00:30]} Kxd6 {[%emt 0:00:30]} 27. Qd4+ {[%emt 0:00:30]} Kc6 {[%emt 0:00:30]} 28. Qxd8 {[%emt 0:00:30]} b4 {[%emt 0:00:30]} 29. Qa8+ {[%emt 0:00:30]} Kd6 {[%emt 0:00:30]} 30. Qf8+ {[%emt 0:00:30]} Kc6 {[%emt 0:00:30]} 31. Qxb4 {[%emt 0:00:30]} Rb7 {[%emt 0:00:30]} 32. Qc4+ {[%emt 0:00:00]} Kd7 {[%emt 0:00:30]} 33. Rd1+ {[%emt 0:01:00]} Ke7 {[%emt 0:00:30]} 34. Qe2+ {[%emt 0:00:30]} 1-0

[Event "Argentine Youth-Junior-ch 2025"]
[Site "Mar del Plata"]
[Date "2025.04.15"]
[Round "1.7"]
[White "Gil Chacon, Fernando Enrique"]
[Black "Agut Britos, Felipe"]
[Result "1-0"]
[Annotator "NA RC"]
[ECO "B23"]
[WhiteElo "2035"]
[BlackElo "1613"]
[PlyCount "37"]
[EventDate "2025.04.14"]
[EventType "swiss"]
[EventCountry "ARG"]
[SourceTitle "playchess.com"]
[Source "ChessBase"]
[SourceQuality "1"]
[TimeControl "3600+30"]

1. e4 {[%emt 0:00:06]} c5 {[%emt 0:00:10]} 2. Nc3 {[%emt 0:00:10]} d6 {[%emt 0:00:14]} 3. d4 {[%emt 0:00:07]} cxd4 {[%emt 0:00:35]} 4. Qxd4 {[%emt 0:00:08]} Nf6 {[%emt 0:00:17]} 5. b3 {[%emt 0:00:16]} g6 {[%emt 0:02:49]} 6. Bb2 {[%emt 0:03:14]} Bg7 {[%emt 0:02:29]} 7. O-O-O {[%emt 0:03:22]} Nc6 {[%emt 0:04:02]} 8. Qd2 {[%emt 0:00:20]} Bd7 {[%emt 0:05:36]} 9. f3 {[%emt 0:01:38]} O-O {[%emt 0:02:58]} 10. h4 {[%emt 0:09:58]} h5 {[%emt 0:03:11]} 11. g4 {[%emt 0:08:36]} hxg4 {[%emt 0:03:53]} 12. Nd5 {[%emt 0:00:56]} Nh5 {[%emt 0:05:08]} 13. Ne2 {[%emt 0:11:52]} Bxb2+ {[%emt 0:09:31]} 14. Kxb2 {[%emt 0:00:13]} gxf3 {[%emt 0:00:32]} 15. Qh6 {[%emt 0:15:35]} fxe2 {[%emt 0:11:01]} 16. Bxe2 {[%emt 0:00:59]} Ng3 {[%emt 0:03:23]} 17. h5 {[%emt 0:01:55]} Ne5 {[%emt 0:04:48]} 18. hxg6 {[%emt 0:00:31]} fxg6 {[%emt 0:00:22]} 19. Qh7# {[%emt 0:00:10]} 1-0

[Event "Argentine Youth-Junior-ch 2025"]
[Site "Mar del Plata"]
[Date "2025.04.15"]
[Round "1.8"]
[White "Donda, Jazmin"]
[Black "Valverde, Melina"]
[Result "1-0"]
[Annotator "NA RC"]
[ECO "E06"]
[WhiteElo "1919"]
[BlackElo "1477"]
[PlyCount "85"]
[EventDate "2025.04.14"]
[EventType "swiss"]
[EventCountry "ARG"]
[SourceTitle "playchess.com"]
[Source "ChessBase"]
[SourceQuality "1"]
[TimeControl "3600+30"]

1. d4 {[%emt 0:00:03]} d5 {[%emt 0:00:07]} 2. c4 {[%emt 0:00:04]} e6 {[%emt 0:00:06]} 3. Nf3 {[%emt 0:00:05]} Nf6 {[%emt 0:00:12]} 4. g3 {[%emt 0:00:04]} Be7 {[%emt 0:00:24]} 5. Bg2 {[%emt 0:00:05]} O-O {[%emt 0:00:18]} 6. O-O {[%emt 0:00:11]} b6 {[%emt 0:00:34]} 7. cxd5 {[%emt 0:00:32]} exd5 {[%emt 0:00:16]} 8. Nc3 {[%emt 0:00:42]} c6 {[%emt 0:00:45]} 9. Ne5 {[%emt 0:04:01]} Bb7 {[%emt 0:01:51]} 10. Nd3 {[%emt 0:03:13]} Na6 {[%emt 0:03:18]} 11. a3 {[%emt 0:02:34]} c5 {[%emt 0:10:33]} 12. dxc5 {[%emt 0:00:24]} bxc5 {[%emt 0:01:02]} 13. Nf4 {[%emt 0:00:50]} Nc7 {[%emt 0:02:21]} 14. Qc2 {[%emt 0:10:18]} Qc8 {[%emt 0:06:19]} 15. Qb3 {[%emt 0:06:58]} c4 {[%emt 0:05:15]} 16. Qd1 {[%emt 0:01:00]} Rd8 {[%emt 0:01:30]} 17. e3 {[%emt 0:05:44]} Rb8 {[%emt 0:05:26]} 18. Bh3 {[%emt 0:02:10]} Ne6 {[%emt 0:00:08]} 19. Nb5 {[%emt 0:02:23]} Qc6 {[%emt 0:02:32]} 20. Nxe6 {[%emt 0:06:19]} d4 {[%emt 0:04:57]} 21. f3 {[%emt 0:00:21]} fxe6 {[%emt 0:00:50]} 22. Nxd4 {[%emt 0:00:11]} Qb6 {[%emt 0:02:20]} 23. Bxe6+ {[%emt 0:00:16]} Kh8 {[%emt 0:00:03]} 24. Bxc4 {[%emt 0:05:30]} Bc5 {[%emt 0:00:44]} 25. Qe2 {[%emt 0:00:49]} Bxd4 {[%emt 0:00:52]} 26. exd4 {[%emt 0:00:05]} Qxd4+ {[%emt 0:00:18]} 27. Be3 {[%emt 0:00:08]} Qd7 {[%emt 0:01:53]} 28. Bxa7 {[%emt 0:02:47]} Ra8 {[%emt 0:01:44]} 29. Rad1 {[%emt 0:00:49]} Bd5 {[%emt 0:02:11]} 30. Bb6 {[%emt 0:06:14]} Rdb8 {[%emt 0:00:30]} 31. Bxd5 {[%emt 0:00:09]} Nxd5 {[%emt 0:00:31]} 32. Bf2 {[%emt 0:00:42]} Qb7 {[%emt 0:00:30]} 33. Qe4 {[%emt 0:00:25]} Nf6 {[%emt 0:00:56]} 34. Qxb7 {[%emt 0:00:09]} Rxb7 {[%emt 0:00:01]} 35. Rd2 {[%emt 0:00:11]} Rab8 {[%emt 0:00:11]} 36. b4 {[%emt 0:00:40]} Ra8 {[%emt 0:00:25]} 37. Rd3 {[%emt 0:00:05]} Rc7 {[%emt 0:01:37]} 38. Rfd1 {[%emt 0:00:07]} Rcc8 {[%emt 0:00:32]} 39. Bd4 {[%emt 0:00:20]} Ng8 {[%emt 0:00:40]} 40. Bb2 {[%emt 0:00:14]} Rc2 {[%emt 0:00:14]} 41. R1d2 {[%emt 0:00:05]} Rac8 {[%emt 0:00:50]} 42. Rd7 {[%emt 0:00:08]} Rxd2 {[%emt 0:00:53]} 43. Bxg7# {[%emt 0:13:55]} 1-0